[Event "2nd Asian Nations Team Cup U14 2019"]
[Site "Shenzhen"]
[Date "2019.12.19"]
[Round "1.15"]
[White "Meng, Yihan"]
[Black "Atakhan, Abtin"]
[Result "1-0"]
[ECO "B22"]
[WhiteElo "1787"]
[BlackElo "2307"]
[Annotator "RC"]
[PlyCount "109"]
[EventDate "2019.12.19"]
[EventType "team-tourn"]
[EventCountry "CHN"]
[SourceTitle "playchess.com"]
[Source "ChessBase"]
[SourceQuality "1"]
[TimeControl "5400+30"]

1. e4 {[%emt 0:00:00]} c5 {[%emt 0:00:00]} 2. Nf3 {[%emt 0:00:00]} Nc6 {[%emt 0:00:17]} 3. c3 {[%emt 0:00:00]} Nf6 {[%emt 0:00:30]} 4. e5 {[%emt 0:00:00]} Nd5 {[%emt 0:00:13]} 5. Bc4 {[%emt 0:00:05]} Nb6 {[%emt 0:00:24]} 6. Bb3 {[%emt 0:00:07]} c4 {[%emt 0:00:11]} 7. Bc2 {[%emt 0:00:07]} d6 {[%emt 0:00:08]} 8. exd6 {[%emt 0:00:07]} e5 {[%emt 0:00:11]} 9. O-O {[%emt 0:01:21]} Bxd6 {[%emt 0:00:08]} 10. d3 {[%emt 0:01:26]} cxd3 {[%emt 0:00:06]} 11. Bxd3 {[%emt 0:00:51]} h6 {[%emt 0:01:38]} 12. Nbd2 {[%emt 0:06:18]} Be6 {[%emt 0:02:06]} 13. Ne4 {[%emt 0:00:43]} Be7 {[%emt 0:00:22]} 14. Ng3 {[%emt 0:00:13]} Qc7 {[%emt 0:05:37]} 15. Qc2 {[%emt 0:02:52]} g6 {[%emt 0:01:13]} 16. a4 {[%emt 0:08:06]} f5 {[%emt 0:05:12]} 17. Bb5 {[%emt 0:04:05]} Nd7 {[%emt 0:02:20]} 18. Re1 {[%emt 0:03:28]} e4 {[%emt 0:00:56]} 19. Bxc6 {[%emt 0:01:19]} bxc6 {[%emt 0:00:07]} 20. Nd4 {[%emt 0:01:12]} Bf7 {[%emt 0:02:41]} 21. f3 {[%emt 0:02:17]} Bh4 {[%emt 0:03:58]} 22. Qf2 {[%emt 0:03:50]} Nf6 {[%emt 0:28:46]} 23. fxe4 {[%emt 0:03:05]} Nxe4 {[%emt 0:00:25]} 24. Ndxf5 {[%emt 0:09:01]} O-O-O {[%emt 0:07:31]} 25. Rxe4 {[%emt 0:02:16]} Rd1+ {[%emt 0:00:06]} 26. Re1 {[%emt 0:00:12]} Rxe1+ {[%emt 0:00:01]} 27. Qxe1 {[%emt 0:00:02]} gxf5 {[%emt 0:00:03]} 28. Qf2 {[%emt 0:00:26]} Be6 {[%emt 0:01:20]} 29. Bf4 {[%emt 0:00:08]} Qd7 {[%emt 0:00:47]} 30. Qe2 {[%emt 0:01:10]} Bd5 {[%emt 0:01:15]} 31. Qe5 {[%emt 0:00:39]} Qd8 {[%emt 0:05:41]} 32. Qb8+ {[%emt 0:00:07]} Kd7 {[%emt 0:00:03]} 33. Qb7+ {[%emt 0:04:08]} Ke6 {[%emt 0:00:17]} 34. Re1+ {[%emt 0:01:49]} Be4 {[%emt 0:00:10]} 35. Qxc6+ {[%emt 0:00:36]} Kf7 {[%emt 0:00:15]} 36. Qc4+ {[%emt 0:00:11]} Bd5 {[%emt 0:00:24]} 37. Qd4 {[%emt 0:00:37]} Bxg3 {[%emt 0:00:15]} 38. hxg3 {[%emt 0:00:32]} Be4 {[%emt 0:00:34]} 39. Qxa7+ {[%emt 0:00:29]} Kg6 {[%emt 0:00:29]} 40. Qa6+ {[%emt 0:00:17]} Kf7 {[%emt 0:00:08]} 41. Qc4+ {[%emt 0:02:22]} Kf6 {[%emt 0:00:32]} 42. Qc5 {[%emt 0:00:45]} Re8 {[%emt 0:00:47]} 43. a5 {[%emt 0:02:32]} Qa8 {[%emt 0:00:31]} 44. b4 {[%emt 0:02:27]} Rd8 {[%emt 0:00:55]} 45. Qb6+ {[%emt 0:01:05]} Kf7 {[%emt 0:00:11]} 46. Qc7+ {[%emt 0:00:08]} Kg6 {[%emt 0:00:20]} 47. Be5 {[%emt 0:01:47]} Qd5 {[%emt 0:00:55]} 48. c4 Qd2 {[%emt 0:00:30]} 49. Qg7+ Kh5 {[%emt 0:00:30]} 50. Qf7+ Kg4 {[%emt 0:00:30]} 51. Rxe4+ fxe4 {[%emt 0:00:30]} 52. Qe6+ Kh5 {[%emt 0:00:30]} 53. Qf5+ Qg5 {[%emt 0:00:30]} 54. g4+ Kh4 {[%emt 0:00:30]} 55. Bf6 1-0

[Event "2nd Asian Nations Team Cup U14 2019"]
[Site "Shenzhen"]
[Date "2019.12.19"]
[Round "1.16"]
[White "Ebrahimi Herab, Hamidreza"]
[Black "Wang, Yuehan"]
[Result "0-1"]
[ECO "E27"]
[WhiteElo "2053"]
[BlackElo "1724"]
[Annotator "NA RC"]
[PlyCount "130"]
[EventDate "2019.12.19"]
[EventType "team-tourn"]
[EventCountry "CHN"]
[SourceTitle "playchess.com"]
[Source "ChessBase"]
[SourceQuality "1"]
[TimeControl "5400+30"]

1. d4 {[%emt 0:00:00]} Nf6 {[%emt 0:00:00]} 2. c4 {[%emt 0:00:00]} e6 {[%emt 0:00:00]} 3. Nc3 {[%emt 0:00:00]} Bb4 {[%emt 0:00:00]} 4. f3 {[%emt 0:00:01]} d5 {[%emt 0:00:03]} 5. a3 {[%emt 0:00:06]} Bxc3+ {[%emt 0:00:20]} 6. bxc3 {[%emt 0:00:08]} O-O {[%emt 0:00:39]} 7. cxd5 {[%emt 0:00:09]} exd5 {[%emt 0:00:07]} 8. e3 {[%emt 0:00:26]} Bf5 {[%emt 0:00:05]} 9. Ne2 {[%emt 0:00:38]} Re8 {[%emt 0:00:36]} 10. g4 {[%emt 0:02:34]} Bg6 {[%emt 0:00:12]} 11. h4 {[%emt 0:00:58]} h6 {[%emt 0:02:39]} 12. Nf4 {[%emt 0:03:03]} Qd6 {[%emt 0:01:07]} 13. Kf2 {[%emt 0:01:40]} Nbd7 {[%emt 0:03:33]} 14. Nxg6 {[%emt 0:07:05]} fxg6 {[%emt 0:00:08]} 15. Bd3 {[%emt 0:00:31]} Nf8 {[%emt 0:03:08]} 16. Qc2 {[%emt 0:03:37]} N6d7 {[%emt 0:00:41]} 17. Qb3 {[%emt 0:10:09]} c5 {[%emt 0:01:15]} 18. Bb1 {[%emt 0:03:01]} cxd4 {[%emt 0:00:44]} 19. cxd4 {[%emt 0:00:18]} Kh8 {[%emt 0:01:01]} 20. Ba2 {[%emt 0:03:38]} Rac8 {[%emt 0:00:42]} 21. e4 {[%emt 0:07:09]} Nb6 {[%emt 0:04:51]} 22. e5 {[%emt 0:12:20]} Qd7 {[%emt 0:00:41]} 23. a4 {[%emt 0:06:13]} Ne6 {[%emt 0:01:28]} 24. Be3 {[%emt 0:03:58]} Nc4 {[%emt 0:00:56]} 25. Qb5 {[%emt 0:03:44]} Qd8 {[%emt 0:06:07]} 26. Rac1 {[%emt 0:05:14]} a6 {[%emt 0:01:43]} 27. Qb1 {[%emt 0:05:52]} Nxe3 {[%emt 0:00:29]} 28. Kxe3 {[%emt 0:00:09]} Rxc1 {[%emt 0:00:55]} 29. Qxc1 {[%emt 0:00:11]} Qd7 {[%emt 0:00:31]} 30. Qc2 {[%emt 0:03:03]} Qf7 {[%emt 0:02:46]} 31. Qh2 {[%emt 0:01:38]} Qf8 {[%emt 0:01:24]} 32. Rb1 {[%emt 0:11:17]} Qa3+ {[%emt 0:01:43]} 33. Bb3 {[%emt 0:00:33]} Rc8 {[%emt 0:00:46]} 34. Qd2 {[%emt 0:02:09]} Qf8 {[%emt 0:01:24]} 35. Kf2 {[%emt 0:00:20]} Qd8 {[%emt 0:00:24]} 36. Kg3 {[%emt 0:00:55]} Qd7 {[%emt 0:01:38]} 37. Qd3 {[%emt 0:02:21]} Rf8 {[%emt 0:02:31]} 38. Qxg6 {[%emt 0:03:05]} Nxd4 {[%emt 0:00:35]} 39. Bd1 {[%emt 0:00:09]} Qc7 40. Qh5 Qc3 41. g5 Qe1+ 42. Kg2 Nxf3 43. Bxf3 Qxb1 44. e6 Qc2+ 45. Kg1 Qc1+ 46. Kg2 Qd2+ 47. Kf1 Qe3 48. Kg2 Qxe6 49. gxh6 gxh6 50. Kh2 Qd6+ 51. Kg2 Rg8+ 52. Kf2 Qc5+ 53. Kf1 Rg1+ 54. Ke2 Qc4+ 55. Kf2 Qc5+ 56. Ke2 Qc2+ 57. Ke3 Re1+ 58. Kf4 Qc7+ 59. Kg4 Rg1+ 60. Kf5 Qd7+ 61. Ke5 Re1+ 62. Kd4 Qxa4+ 63. Kc5 Qc6+ 64. Kb4 Qc4+ 65. Ka3 {[%emt 0:13:00]} Qc3+ 0-1

[Event "2nd Asian Nations Team Cup U14 2019"]
[Site "Shenzhen"]
[Date "2019.12.19"]
[Round "1.17"]
[White "Yeoh, Yuan Hui"]
[Black "Batbold, Nyamsuren"]
[Result "0-1"]
[ECO "C10"]
[WhiteElo "1738"]
[BlackElo "1963"]
[Annotator "NA RC"]
[PlyCount "48"]
[EventDate "2019.12.19"]
[EventType "team-tourn"]
[EventCountry "CHN"]
[SourceTitle "playchess.com"]
[Source "ChessBase"]
[SourceQuality "1"]
[TimeControl "5400+30"]

1. d4 {[%emt 0:06:43]} e6 {[%emt 0:00:26]} 2. e4 {[%emt 0:00:17]} d5 {[%emt 0:00:25]} 3. Nc3 {[%emt 0:00:15]} dxe4 {[%emt 0:00:38]} 4. Nxe4 {[%emt 0:00:14]} Nd7 {[%emt 0:01:01]} 5. Nf3 {[%emt 0:00:44]} Ngf6 {[%emt 0:00:34]} 6. Nxf6+ {[%emt 0:02:03]} Nxf6 {[%emt 0:00:46]} 7. Bd3 {[%emt 0:00:10]} Be7 {[%emt 0:01:45]} 8. c3 {[%emt 0:01:43]} O-O {[%emt 0:00:26]} 9. Qc2 {[%emt 0:00:12]} h6 {[%emt 0:17:00]} 10. Be3 {[%emt 0:02:51]} b6 {[%emt 0:03:13]} 11. O-O-O {[%emt 0:03:30]} Bb7 {[%emt 0:00:12]} 12. Ne5 {[%emt 0:03:47]} Nd5 {[%emt 0:07:30]} 13. Be4 {[%emt 0:13:46]} Bf6 {[%emt 0:15:03]} 14. Nf3 {[%emt 0:07:06]} Re8 {[%emt 0:10:23]} 15. Kb1 {[%emt 0:04:52]} a5 {[%emt 0:01:17]} 16. h4 {[%emt 0:01:52]} a4 {[%emt 0:18:09]} 17. g4 {[%emt 0:08:06]} a3 {[%emt 0:13:40]} 18. g5 {[%emt 0:06:09]} axb2 {[%emt 0:00:45]} 19. Bd2 Be7 20. c4 Rxa2 21. cxd5 Qa8 22. Qb3 Ra1+ 23. Kxb2 Ra3 24. Qb5 exd5 0-1

[Event "2nd Asian Nations Team Cup U14 2019"]
[Site "Shenzhen"]
[Date "2019.12.19"]
[Round "1.18"]
[White "Erkhes, Bayartnar"]
[Black "Foo, Jiu Yarng Clarance"]
[Result "1-0"]
[ECO "B51"]
[WhiteElo "1937"]
[BlackElo "1654"]
[Annotator "NA RC"]
[PlyCount "96"]
[EventDate "2019.12.19"]
[EventType "team-tourn"]
[EventCountry "CHN"]
[SourceTitle "playchess.com"]
[Source "ChessBase"]
[SourceQuality "1"]
[TimeControl "5400+30"]

1. e4 {[%emt 0:00:00]} c5 {[%emt 0:00:00]} 2. Nf3 {[%emt 0:00:00]} d6 {[%emt 0:00:00]} 3. Bb5+ {[%emt 0:00:16]} Nd7 {[%emt 0:00:04]} 4. d4 {[%emt 0:00:12]} cxd4 {[%emt 0:00:50]} 5. Qxd4 {[%emt 0:00:16]} a6 {[%emt 0:00:33]} 6. Bxd7+ {[%emt 0:00:35]} Bxd7 {[%emt 0:00:17]} 7. O-O {[%emt 0:00:17]} e5 {[%emt 0:01:41]} 8. Qd3 {[%emt 0:00:35]} Nf6 {[%emt 0:04:45]} 9. Bg5 {[%emt 0:02:00]} h6 {[%emt 0:00:27]} 10. Bxf6 {[%emt 0:01:00]} Qxf6 {[%emt 0:00:48]} 11. Nc3 {[%emt 0:01:07]} Be6 {[%emt 0:07:30]} 12. Nd5 {[%emt 0:00:55]} Bxd5 {[%emt 0:11:56]} 13. Qxd5 {[%emt 0:00:26]} Rb8 {[%emt 0:01:02]} 14. Qb3 {[%emt 0:03:54]} Qe6 {[%emt 0:05:37]} 15. Qa4+ {[%emt 0:07:59]} Qd7 {[%emt 0:01:00]} 16. Qa5 {[%emt 0:08:16]} Be7 {[%emt 0:02:47]} 17. Rfd1 {[%emt 0:01:23]} Qc6 {[%emt 0:02:26]} 18. c3 {[%emt 0:13:36]} O-O {[%emt 0:04:21]} 19. Qb4 {[%emt 0:01:38]} Rfe8 {[%emt 0:06:16]} 20. Rd5 {[%emt 0:01:05]} b5 {[%emt 0:08:04]} 21. Nd2 {[%emt 0:07:48]} Rec8 {[%emt 0:08:10]} 22. Rd1 {[%emt 0:03:44]} Bf8 {[%emt 0:04:44]} 23. Qb3 {[%emt 0:11:31]} Qb6 {[%emt 0:02:24]} 24. Nf1 {[%emt 0:05:16]} Rc4 {[%emt 0:05:09]} 25. Qc2 Rbc8 26. Ne3 R4c6 27. Qd2 a5 28. a3 b4 29. axb4 axb4 30. cxb4 Rb8 31. b5 Rc5 32. b4 Rxb5 33. Rxb5 Qxb5 34. Nd5 Qc4 35. Qd3 Qc6 36. Rb1 Rb5 37. Nc3 Rb7 38. b5 Qc5 39. Nd5 Be7 40. b6 Bd8 41. Qa6 Qc6 42. Qa8 Qd7 43. h3 Kh7 44. Kh2 f5 45. exf5 Qc6 46. Qxd8 Qxd5 47. f6 gxf6 48. Rc1 Kg7 1-0

[Event "2nd Asian Nations Team Cup U14 2019"]
[Site "Shenzhen"]
[Date "2019.12.19"]
[Round "1.19"]
[White "Lee, Ryan"]
[Black "Angar, Zoljargal"]
[Result "0-1"]
[ECO "D53"]
[WhiteElo "1615"]
[BlackElo "1696"]
[Annotator "NA RC"]
[PlyCount "106"]
[EventDate "2019.12.19"]
[EventType "team-tourn"]
[EventCountry "CHN"]
[SourceTitle "playchess.com"]
[Source "ChessBase"]
[SourceQuality "1"]
[TimeControl "5400+30"]

1. d4 {[%emt 0:04:43]} d5 {[%emt 0:00:14]} 2. c4 {[%emt 0:00:14]} c6 {[%emt 0:00:16]} 3. Nc3 {[%emt 0:00:24]} Nf6 {[%emt 0:00:21]} 4. Nf3 {[%emt 0:01:47]} e6 {[%emt 0:01:23]} 5. Bg5 {[%emt 0:01:34]} Nbd7 {[%emt 0:03:14]} 6. e3 {[%emt 0:02:06]} Be7 {[%emt 0:03:09]} 7. Bd3 {[%emt 0:01:19]} dxc4 {[%emt 0:02:41]} 8. Bxc4 {[%emt 0:00:09]} b5 {[%emt 0:00:29]} 9. Bd3 {[%emt 0:01:34]} a6 {[%emt 0:02:17]} 10. Ne5 {[%emt 0:04:54]} Bb7 {[%emt 0:06:12]} 11. O-O {[%emt 0:06:35]} c5 {[%emt 0:03:37]} 12. Nxd7 {[%emt 0:04:01]} Nxd7 {[%emt 0:01:26]} 13. Bxe7 {[%emt 0:00:33]} Qxe7 {[%emt 0:00:15]} 14. Be4 {[%emt 0:02:26]} Bxe4 {[%emt 0:01:55]} 15. Nxe4 {[%emt 0:00:07]} O-O {[%emt 0:01:54]} 16. dxc5 {[%emt 0:11:47]} Nxc5 {[%emt 0:04:07]} 17. Qc2 {[%emt 0:08:46]} Na4 {[%emt 0:07:13]} 18. Rac1 {[%emt 0:02:58]} h6 {[%emt 0:04:42]} 19. b3 {[%emt 0:04:27]} Nb6 {[%emt 0:03:11]} 20. Qc5 {[%emt 0:11:16]} Qxc5 {[%emt 0:03:56]} 21. Rxc5 {[%emt 0:01:32]} Rfd8 {[%emt 0:05:42]} 22. Rc6 {[%emt 0:04:59]} Nd5 {[%emt 0:04:17]} 23. a3 {[%emt 0:03:34]} b4 {[%emt 0:05:38]} 24. a4 {[%emt 0:01:10]} Rdc8 {[%emt 0:00:30]} 25. Rfc1 {[%emt 0:02:04]} Nc3 {[%emt 0:00:33]} 26. Rxc8+ {[%emt 0:00:24]} Rxc8 {[%emt 0:00:11]} 27. Kf1 {[%emt 0:02:45]} e5 28. Nxc3 bxc3 29. Ke2 e4 30. Kd1 Rd8+ 31. Kc2 Rd2+ 32. Kxc3 Rxf2 33. Rc2 Rf1 34. Kd4 f5 35. Kc5 Rd1 36. b4 g5 37. Rf2 f4 38. exf4 e3 39. Re2 gxf4 40. b5 axb5 41. axb5 Rd2 42. Re1 Rxg2 43. b6 Rb2 44. Kc6 Kf7 45. b7 Kf6 46. Kc7 Ke5 47. b8=Q Rxb8 48. Kxb8 Ke4 49. Kc7 f3 50. Kd6 f2 51. Ra1 e2 52. Ra4+ Kf3 53. Ra3+ Kg2 0-1

[Event "2nd Asian Nations Team Cup U14 2019"]
[Site "Shenzhen"]
[Date "2019.12.19"]
[Round "1.20"]
[White "Ulziikhishig Khishigbat"]
[Black "Foo, Jing Er Claire"]
[Result "1-0"]
[ECO "D26"]
[WhiteElo "1525"]
[BlackElo "1546"]
[Annotator "NA RC"]
[PlyCount "129"]
[EventDate "2019.12.19"]
[EventType "team-tourn"]
[EventCountry "CHN"]
[SourceTitle "playchess.com"]
[Source "ChessBase"]
[SourceQuality "1"]
[TimeControl "5400+30"]

1. d4 {[%emt 0:00:00]} d5 {[%emt 0:00:00]} 2. c4 {[%emt 0:00:00]} e6 {[%emt 0:00:09]} 3. Nc3 {[%emt 0:00:04]} Nf6 {[%emt 0:00:08]} 4. Nf3 {[%emt 0:00:21]} a6 {[%emt 0:00:27]} 5. e3 {[%emt 0:11:59]} dxc4 {[%emt 0:07:42]} 6. Bxc4 {[%emt 0:00:15]} b5 {[%emt 0:00:26]} 7. Bb3 {[%emt 0:02:31]} Bb7 {[%emt 0:01:45]} 8. O-O {[%emt 0:00:55]} Be7 {[%emt 0:00:36]} 9. Re1 {[%emt 0:03:48]} O-O {[%emt 0:00:56]} 10. Bc2 {[%emt 0:02:43]} c5 {[%emt 0:10:54]} 11. e4 {[%emt 0:05:38]} Nc6 {[%emt 0:24:45]} 12. e5 {[%emt 0:04:52]} Nd5 {[%emt 0:01:55]} 13. Nxd5 {[%emt 0:01:14]} Qxd5 {[%emt 0:01:07]} 14. Be4 {[%emt 0:00:27]} Qd7 {[%emt 0:11:57]} 15. dxc5 {[%emt 0:01:00]} Qxd1 {[%emt 0:01:02]} 16. Rxd1 {[%emt 0:01:01]} Bxc5 {[%emt 0:00:30]} 17. Bd2 {[%emt 0:03:08]} Nd8 {[%emt 0:03:14]} 18. Bc2 {[%emt 0:03:42]} Bd5 {[%emt 0:02:36]} 19. Bb3 {[%emt 0:01:36]} Bxf3 {[%emt 0:04:48]} 20. gxf3 {[%emt 0:00:12]} Nb7 {[%emt 0:05:15]} 21. f4 {[%emt 0:06:26]} Rfd8 {[%emt 0:01:31]} 22. Bc2 {[%emt 0:01:41]} g6 {[%emt 0:01:48]} 23. Rac1 {[%emt 0:02:05]} Bd4 {[%emt 0:02:40]} 24. Be4 {[%emt 0:01:34]} Rab8 {[%emt 0:02:09]} 25. Bxb7 {[%emt 0:03:53]} Rxb7 {[%emt 0:01:23]} 26. Ba5 {[%emt 0:00:35]} Rd5 {[%emt 0:01:51]} 27. Rc8+ {[%emt 0:01:21]} Kg7 {[%emt 0:00:13]} 28. Rd2 Rc5 29. Ra8 Rc1+ 30. Kg2 Ba7 31. Bb4 Bc5 32. Bxc5 Rxc5 33. Rxa6 Rc4 34. Kg3 Rbc7 35. Rb6 b4 36. f3 h5 37. h4 Rc1 38. Rxb4 Ra1 39. a4 Rcc1 40. b3 Rc3 41. Kg2 Rb1 42. a5 Rbxb3 43. Rxb3 Rxb3 44. Ra2 Rb7 45. a6 Ra7 46. Kf2 f6 47. Ke3 fxe5 48. fxe5 Kh6 49. f4 Kg7 50. Kd4 Kf7 51. Kc5 g5 52. fxg5 Kg6 53. Kb6 Ra8 54. a7 Kh7 55. Kb7 Rg8 56. a8=Q Rg7+ 57. Kc6 Rg6 58. Ra7+ Rg7 59. Rxg7+ Kxg7 60. Kd7 Kf7 61. Qe8+ Kg7 62. Ke7 Kh7 63. Qxh5+ Kg8 64. g6 Kg7 65. Qh7# 1-0

[Event "2nd Asian Nations Team Cup U14 2019"]
[Site "Shenzhen"]
[Date "2019.12.20"]
[Round "2.1"]
[White "Yin, Richard"]
[Black "Erkhes, Bayartnar"]
[Result "1/2-1/2"]
[ECO "C54"]
[WhiteElo "1427"]
[BlackElo "1937"]
[Annotator "NA RC"]
[PlyCount "124"]
[EventDate "2019.12.19"]
[EventType "team-tourn"]
[EventCountry "CHN"]
[SourceTitle "playchess.com"]
[Source "ChessBase"]
[SourceQuality "1"]
[TimeControl "5400+30"]

1. e4 {[%emt 0:00:00]} e5 {[%emt 0:00:00]} 2. Nf3 {[%emt 0:00:00]} Nc6 {[%emt 0:00:05]} 3. Bc4 {[%emt 0:00:00]} Bc5 {[%emt 0:00:12]} 4. c3 Nf6 {[%emt 0:00:18]} 5. d4 {[%emt 0:01:04]} exd4 {[%emt 0:00:13]} 6. cxd4 {[%emt 0:00:10]} Bb4+ {[%emt 0:00:19]} 7. Bd2 {[%emt 0:00:23]} Bxd2+ {[%emt 0:08:11]} 8. Nbxd2 {[%emt 0:00:15]} d5 {[%emt 0:03:15]} 9. exd5 {[%emt 0:00:07]} Nxd5 {[%emt 0:00:11]} 10. Qb3 {[%emt 0:00:03]} Nce7 {[%emt 0:04:48]} 11. O-O {[%emt 0:00:16]} O-O {[%emt 0:00:10]} 12. Rfe1 {[%emt 0:00:14]} c6 {[%emt 0:02:17]} 13. a4 {[%emt 0:00:05]} h6 {[%emt 0:00:40]} 14. Re2 {[%emt 0:14:31]} Nb6 {[%emt 0:19:22]} 15. Rae1 {[%emt 0:02:47]} Nxc4 {[%emt 0:02:24]} 16. Qxc4 {[%emt 0:01:32]} Nd5 {[%emt 0:00:33]} 17. Re5 {[%emt 0:17:40]} Be6 {[%emt 0:04:12]} 18. Qe2 {[%emt 0:01:36]} Qb6 {[%emt 0:07:52]} 19. Nf1 {[%emt 0:16:04]} Bg4 {[%emt 0:03:25]} 20. Re4 {[%emt 0:00:38]} f5 {[%emt 0:06:53]} 21. Re5 {[%emt 0:01:16]} Bxf3 {[%emt 0:00:19]} 22. Qxf3 {[%emt 0:00:26]} Qxb2 {[%emt 0:05:54]} 23. Qd3 {[%emt 0:05:50]} Qb6 {[%emt 0:10:25]} 24. Rb1 {[%emt 0:01:26]} Qc7 {[%emt 0:01:07]} 25. Rxf5 {[%emt 0:03:52]} Rxf5 {[%emt 0:01:00]} 26. Qxf5 {[%emt 0:00:18]} Rf8 {[%emt 0:00:13]} 27. Qc2 {[%emt 0:03:04]} Kh8 {[%emt 0:04:30]} 28. Ne3 {[%emt 0:01:58]} Nxe3 {[%emt 0:01:43]} 29. fxe3 {[%emt 0:01:33]} Re8 {[%emt 0:00:26]} 30. Re1 {[%emt 0:09:27]} Qa5 {[%emt 0:00:46]} 31. Re2 {[%emt 0:01:22]} Qb4 {[%emt 0:01:13]} 32. h3 {[%emt 0:01:08]} Qa3 {[%emt 0:01:24]} 33. Qc5 {[%emt 0:05:41]} Qxa4 {[%emt 0:01:17]} 34. Rf2 {[%emt 0:01:53]} Qb5 {[%emt 0:06:14]} 35. Qxb5 {[%emt 0:04:50]} cxb5 {[%emt 0:00:05]} 36. Rf7 {[%emt 0:00:06]} Rxe3 {[%emt 0:02:03]} 37. Rxb7 {[%emt 0:00:08]} a6 {[%emt 0:00:44]} 38. Rb6 {[%emt 0:00:18]} Rd3 {[%emt 0:00:43]} 39. Rxa6 {[%emt 0:01:22]} Rxd4 {[%emt 0:00:03]} 40. Rb6 {[%emt 0:00:26]} Rb4 {[%emt 0:00:11]} 41. Kh2 {[%emt 0:00:14]} Rb2 {[%emt 0:01:36]} 42. h4 {[%emt 0:00:19]} b4 {[%emt 0:00:27]} 43. h5 {[%emt 0:00:16]} b3 {[%emt 0:00:15]} 44. Rb5 {[%emt 0:00:41]} Kg8 {[%emt 0:00:33]} 45. Rb7 {[%emt 0:00:16]} Rb1 {[%emt 0:01:01]} 46. Kg3 {[%emt 0:01:39]} b2 {[%emt 0:00:42]} 47. Kg4 {[%emt 0:00:33]} Kf8 {[%emt 0:00:04]} 48. g3 {[%emt 0:00:58]} Kg8 {[%emt 0:00:14]} 49. Rb8+ {[%emt 0:00:23]} Kf7 {[%emt 0:00:05]} 50. Rb7+ {[%emt 0:00:08]} Kf6 {[%emt 0:00:05]} 51. Rb6+ {[%emt 0:00:06]} Ke5 {[%emt 0:00:05]} 52. Rb5+ {[%emt 0:00:12]} Ke4 {[%emt 0:00:19]} 53. Rb7 {[%emt 0:00:28]} Ke3 {[%emt 0:00:54]} 54. Rb3+ {[%emt 0:01:21]} Kd4 {[%emt 0:00:42]} 55. Rb7 {[%emt 0:00:17]} Kd3 {[%emt 0:01:09]} 56. Rd7+ {[%emt 0:00:48]} Ke3 {[%emt 0:00:07]} 57. Rb7 {[%emt 0:00:25]} Kf2 {[%emt 0:01:03]} 58. Rf7+ {[%emt 0:00:48]} Ke3 {[%emt 0:01:55]} 59. Re7+ {[%emt 0:00:27]} Kd4 {[%emt 0:00:02]} 60. Rb7 {[%emt 0:00:19]} Ke5 {[%emt 0:00:36]} 61. Rb5+ {[%emt 0:00:41]} Kf6 {[%emt 0:00:06]} 62. Rb6+ {[%emt 0:00:16]} Kf7 {[%emt 0:00:58]} 1/2-1/2

[Event "2nd Asian Nations Team Cup U14 2019"]
[Site "Shenzhen"]
[Date "2019.12.20"]
[Round "2.2"]
[White "Temuujin, Kherlen"]
[Black "Lam, Chun Yung Samuel"]
[Result "1-0"]
[ECO "A13"]
[WhiteElo "1711"]
[BlackElo "1288"]
[Annotator "NA RC"]
[PlyCount "51"]
[EventDate "2019.12.19"]
[EventType "team-tourn"]
[EventCountry "CHN"]
[SourceTitle "playchess.com"]
[Source "ChessBase"]
[SourceQuality "1"]
[TimeControl "5400+30"]

1. c4 {[%emt 0:00:00]} e6 {[%emt 0:00:00]} 2. Nf3 {[%emt 0:00:00]} d5 {[%emt 0:00:00]} 3. g3 d4 {[%emt 0:00:49]} 4. d3 {[%emt 0:02:29]} c5 {[%emt 0:01:47]} 5. Bg2 {[%emt 0:01:52]} Nf6 {[%emt 0:02:02]} 6. O-O {[%emt 0:00:46]} Bd6 {[%emt 0:01:24]} 7. e4 {[%emt 0:10:55]} e5 {[%emt 0:00:21]} 8. h3 {[%emt 0:11:04]} O-O {[%emt 0:03:36]} 9. Ne1 {[%emt 0:02:52]} a6 {[%emt 0:00:40]} 10. f4 {[%emt 0:02:30]} b5 {[%emt 0:03:15]} 11. b3 {[%emt 0:15:17]} Qb6 {[%emt 0:13:20]} 12. fxe5 {[%emt 0:04:16]} Bxe5 {[%emt 0:00:52]} 13. Bf4 {[%emt 0:00:26]} Nc6 {[%emt 0:01:52]} 14. Nf3 {[%emt 0:01:01]} Bc7 {[%emt 0:03:54]} 15. Nbd2 {[%emt 0:14:48]} Qb8 {[%emt 0:01:05]} 16. e5 {[%emt 0:04:54]} Nd7 {[%emt 0:01:00]} 17. Ng5 {[%emt 0:04:12]} Bb7 {[%emt 0:01:36]} 18. e6 {[%emt 0:05:00]} Bxf4 {[%emt 0:00:56]} 19. exf7+ {[%emt 0:00:54]} Kh8 {[%emt 0:00:55]} 20. Rxf4 {[%emt 0:01:09]} Nde5 {[%emt 0:01:10]} 21. Nxh7 {[%emt 0:05:32]} Rxf7 {[%emt 0:00:24]} 22. Ng5 {[%emt 0:00:34]} Rxf4 {[%emt 0:03:11]} 23. gxf4 {[%emt 0:01:19]} Nd7 {[%emt 0:00:38]} 24. Qh5+ {[%emt 0:00:11]} Kg8 {[%emt 0:00:20]} 25. Bd5+ {[%emt 0:00:05]} Kf8 {[%emt 0:00:19]} 26. Qf7# {[%emt 0:00:03]} 1-0

[Event "2nd Asian Nations Team Cup U14 2019"]
[Site "Shenzhen"]
[Date "2019.12.20"]
[Round "2.3"]
[White "Li, Yucheng Robinson"]
[Black "Angar, Zoljargal"]
[Result "1/2-1/2"]
[ECO "B52"]
[WhiteElo "1185"]
[BlackElo "1696"]
[Annotator "NA RC"]
[PlyCount "86"]
[EventDate "2019.12.19"]
[EventType "team-tourn"]
[EventCountry "CHN"]
[SourceTitle "playchess.com"]
[Source "ChessBase"]
[SourceQuality "1"]
[TimeControl "5400+30"]

1. e4 {[%emt 0:00:00]} c5 {[%emt 0:00:00]} 2. Nf3 {[%emt 0:00:00]} d6 {[%emt 0:00:06]} 3. Nc3 {[%emt 0:00:13]} Nf6 4. Bb5+ {[%emt 0:02:33]} Bd7 {[%emt 0:01:00]} 5. Bxd7+ {[%emt 0:00:15]} Qxd7 {[%emt 0:00:12]} 6. d3 {[%emt 0:00:22]} g6 {[%emt 0:00:53]} 7. O-O {[%emt 0:00:21]} Bg7 {[%emt 0:00:36]} 8. Bf4 {[%emt 0:00:20]} O-O {[%emt 0:00:46]} 9. Qd2 {[%emt 0:00:26]} Nc6 {[%emt 0:02:59]} 10. Bh6 {[%emt 0:00:58]} a6 {[%emt 0:00:41]} 11. Bxg7 {[%emt 0:00:33]} Kxg7 {[%emt 0:00:13]} 12. a4 {[%emt 0:00:43]} d5 {[%emt 0:07:33]} 13. exd5 {[%emt 0:02:03]} Nxd5 {[%emt 0:00:46]} 14. Ne4 {[%emt 0:01:28]} b6 {[%emt 0:03:26]} 15. Nc3 {[%emt 0:06:32]} Nd4 {[%emt 0:03:48]} 16. Nxd4 {[%emt 0:00:00]} cxd4 {[%emt 0:00:33]} 17. Nxd5 {[%emt 0:00:00]} Qxd5 {[%emt 0:00:09]} 18. Qb4 {[%emt 0:00:00]} e6 {[%emt 0:03:56]} 19. Rfe1 {[%emt 0:01:47]} Rfc8 {[%emt 0:01:35]} 20. Rac1 {[%emt 0:01:58]} Rc6 {[%emt 0:05:59]} 21. Re2 {[%emt 0:04:19]} Rac8 {[%emt 0:01:05]} 22. h3 {[%emt 0:01:24]} h5 {[%emt 0:02:28]} 23. Qa3 {[%emt 0:09:39]} Rc5 {[%emt 0:09:47]} 24. Qb4 {[%emt 0:02:11]} b5 {[%emt 0:00:00]} 25. a5 {[%emt 0:00:48]} e5 {[%emt 0:07:12]} 26. Qe1 {[%emt 0:08:50]} Qd6 {[%emt 0:03:10]} 27. b4 {[%emt 0:06:34]} Rc3 {[%emt 0:00:00]} 28. Rxe5 {[%emt 0:02:03]} Rxc2 {[%emt 0:00:00]} 29. Rxc2 {[%emt 0:00:00]} Rxc2 {[%emt 0:00:00]} 30. f4 {[%emt 0:04:05]} Qc6 {[%emt 0:03:39]} 31. Qg3 {[%emt 0:01:10]} Rc1+ {[%emt 0:00:15]} 32. Kh2 {[%emt 0:02:00]} Rf1 {[%emt 0:01:55]} 33. Re1 {[%emt 0:01:45]} Rxe1 {[%emt 0:03:04]} 34. Qxe1 {[%emt 0:17:42]} Qd6 {[%emt 0:18:03]} 35. Qe5+ {[%emt 0:00:00]} Qxe5 {[%emt 0:01:20]} 36. fxe5 {[%emt 0:00:00]} g5 {[%emt 0:00:06]} 37. g4 {[%emt 0:03:42]} hxg4 {[%emt 0:03:54]} 38. hxg4 {[%emt 0:00:00]} f6 {[%emt 0:00:14]} 39. exf6+ {[%emt 0:00:00]} Kxf6 {[%emt 0:00:16]} 40. Kg3 {[%emt 0:00:00]} Ke6 {[%emt 0:00:40]} 41. Kf3 {[%emt 0:00:00]} Kd5 {[%emt 0:00:22]} 42. Kg3 {[%emt 0:00:00]} Kd6 {[%emt 0:02:33]} 43. Kf3 {[%emt 0:00:21]} Ke5 {[%emt 0:00:00] Ke4+} 1/2-1/2